[Event "45th FIDE Womens Olympiad 2024"]
[Site "Budapest"]
[Date "2024.09.14"]
[Round "4.204"]
[White "Alvarez Gutierrez, Patricia"]
[Black "Sokolova, Victoria"]
[Result "1-0"]
[ECO "D58"]
[WhiteElo "1826"]
[BlackElo "1682"]
[PlyCount "75"]
[EventDate "2024.09.05"]
[EventType "team-tourn"]
[EventCountry "HUN"]
[WhiteTeam "Nicaragua"]
[BlackTeam "Cyprus"]
[WhiteTeamCountry "NCA"]
[BlackTeamCountry "CYP"]
[TimeControl "40/5400+30:1800+30"]

1. d4 d5 2. c4 e6 3. Nc3 Nf6 4. Bg5 Be7 5. Nf3 O-O 6. e3 h6 7. Bh4 b6 8. cxd5 Nxd5 9. Bg3 Nxc3 10. bxc3 Bb7 11. Bd3 Nd7 12. O-O c5 13. a4 Nf6 14. Qe2 Ne4 15. Rfc1 Nxg3 16. hxg3 Bxf3 17. Qxf3 cxd4 18. cxd4 Rc8 19. Qe4 g6 20. Rxc8 Qxc8 21. Rd1 Bd6 22. d5 exd5 23. Qxd5 Bc5 24. Bxg6 Qg4 25. Bc2 a5 26. Qd3 Qg7 27. Qe4 f5 28. Qe6+ Kh8 29. Rd7 Qg5 30. g4 Rf6 31. Rd8+ Bf8 32. Qc8 Kg7 33. Bxf5 h5 34. Rd7+ Rf7 35. Rxf7+ Kxf7 36. Qe6+ Kg7 37. gxh5 Qxh5 38. Qe5+ 1-0

[Event "45th FIDE Womens Olympiad 2024"]
[Site "Budapest"]
[Date "2024.09.14"]
[Round "4.205"]
[White "Fuad Kamel Jamaliah, Natalie"]
[Black "Kovacova, Zuzana"]
[Result "1/2-1/2"]
[ECO "D02"]
[WhiteElo "2003"]
[BlackElo "2020"]
[PlyCount "74"]
[EventDate "2024.09.05"]
[EventType "team-tourn"]
[EventCountry "HUN"]
[WhiteTeam "Jordan"]
[BlackTeam "Bermuda"]
[WhiteTeamCountry "JOR"]
[BlackTeamCountry "BER"]
[TimeControl "40/5400+30:1800+30"]

1. d4 d5 2. Bf4 Nf6 3. e3 c5 4. Nf3 Nc6 5. c3 Qb6 6. Qb3 c4 7. Qc2 Bf5 8. Qc1 h6 9. h3 e6 10. Nbd2 Qd8 11. Be2 Bd6 12. Bxd6 Qxd6 13. O-O O-O 14. Nh4 Bh7 15. f4 b5 16. Nhf3 Ne4 17. Nxe4 Bxe4 18. Ne5 Rab8 19. Qd2 Rb7 20. b4 cxb3 21. axb3 Nxe5 22. fxe5 Qe7 23. Bd3 Bxd3 24. Qxd3 Rc8 25. Ra6 Qc7 26. Rc1 Rb6 27. Rxb6 Qxb6 28. e4 a5 29. exd5 exd5 30. Qf3 Qc6 31. Qd1 a4 32. bxa4 bxa4 33. Ra1 Ra8 34. Ra3 Qb5 35. Qa1 Ra6 36. Qa2 Kh8 37. Kh2 Kg8 1/2-1/2

[Event "45th FIDE Womens Olympiad 2024"]
[Site "Budapest"]
[Date "2024.09.14"]
[Round "4.206"]
[White "Cancino, Shiela"]
[Black "Jeda Helal"]
[Result "0-1"]
[ECO "D11"]
[WhiteElo "1663"]
[BlackElo "1569"]
[PlyCount "46"]
[EventDate "2024.09.05"]
[EventType "team-tourn"]
[EventCountry "HUN"]
[WhiteTeam "Bermuda"]
[BlackTeam "Jordan"]
[WhiteTeamCountry "BER"]
[BlackTeamCountry "JOR"]
[TimeControl "40/5400+30:1800+30"]

1. d4 c6 2. Nf3 d5 3. e3 Nf6 4. Bd3 Bg4 5. Nbd2 e6 6. O-O Bd6 7. c4 O-O 8. Qc2 Nbd7 9. b3 e5 10. e4 dxe4 11. Bxe4 Nxe4 12. Nxe4 Bc7 13. Neg5 g6 14. h3 Bf5 15. Qb2 h6 16. h4 hxg5 17. dxe5 g4 18. Bg5 Qb8 19. Bh6 gxf3 20. Qd2 Bxe5 21. g4 Bxg4 22. Qg5 Bh3 23. h5 Bh2+ {0-} 0-1

[Event "45th FIDE Womens Olympiad 2024"]
[Site "Budapest"]
[Date "2024.09.14"]
[Round "4.208"]
[White "Gontcharova, Olga"]
[Black "Ruba Al-Qudah"]
[Result "0-1"]
[ECO "B07"]
[WhiteElo "1567"]
[BlackElo "1937"]
[PlyCount "60"]
[EventDate "2024.09.05"]
[EventType "team-tourn"]
[EventCountry "HUN"]
[WhiteTeam "Bermuda"]
[BlackTeam "Jordan"]
[WhiteTeamCountry "BER"]
[BlackTeamCountry "JOR"]
[TimeControl "40/5400+30:1800+30"]

1. d4 Nf6 2. Nc3 g6 3. e4 d6 4. f3 Bg7 5. Bd3 O-O 6. Bd2 c5 7. Nge2 cxd4 8. Nxd4 Nxe4 9. Be3 Nxc3 10. bxc3 Nc6 11. Qd2 Qa5 12. Ne2 Ne5 13. O-O Bd7 14. Bh6 Rac8 15. Bxg7 Kxg7 16. f4 Qc5+ 17. Kh1 Ng4 18. Qe1 Ne3 19. Rf2 Nd5 20. f5 Nxc3 21. f6+ exf6 22. Qf1 Nxe2 23. Bxe2 Qe5 24. Rc1 Rc3 25. Re1 Re3 26. Rf3 Re8 27. g3 Bc6 28. h3 Rxe2 29. Rxe2 Qxe2 30. Qf2 Qxf2 {0-} 0-1

[Event "45th FIDE Womens Olympiad 2024"]
[Site "Budapest"]
[Date "2024.09.14"]
[Round "4.209"]
[White "Ampaire Shakira"]
[Black "Hamadeh, Sally"]
[Result "1-0"]
[ECO "D02"]
[WhiteElo "1839"]
[BlackElo "1557"]
[PlyCount "61"]
[EventDate "2024.09.05"]
[EventType "team-tourn"]
[EventCountry "HUN"]
[WhiteTeam "Uganda"]
[BlackTeam "Lebanon"]
[WhiteTeamCountry "UGA"]
[BlackTeamCountry "LBN"]
[TimeControl "40/5400+30:1800+30"]

1. d4 d5 2. Nf3 Nf6 3. Bf4 c5 4. e3 e6 5. Ne5 Bd6 6. Bb5+ Nbd7 7. Nxf7 Kxf7 8. Bxd6 Qa5+ 9. Nc3 Ne4 10. Bxd7 Bxd7 11. Bxc5 Nxc3 12. bxc3 Qxc3+ 13. Kf1 Rhd8 14. Rb1 b6 15. Bb4 Qc4+ 16. Kg1 Qxa2 17. h4 Kg8 18. Kh2 Rdc8 19. Rc1 a5 20. Bd6 Ba4 21. Qg4 Re8 22. Be5 Ra7 23. h5 Bxc2 24. h6 Bg6 25. hxg7 Qxf2 26. Rhf1 Bf5 27. Qh5 Bg6 28. Qg5 Qe2 29. Rf8+ Rxf8 30. gxf8=Q+ Kxf8 31. Rc8+ 1-0

[Event "45th FIDE Womens Olympiad 2024"]
[Site "Budapest"]
[Date "2024.09.14"]
[Round "4.210"]
[White "Attieh, Skye"]
[Black "Amoko, Ivy Claire"]
[Result "0-1"]
[ECO "C54"]
[WhiteElo "1675"]
[BlackElo "1820"]
[PlyCount "120"]
[EventDate "2024.09.05"]
[EventType "team-tourn"]
[EventCountry "HUN"]
[WhiteTeam "Lebanon"]
[BlackTeam "Uganda"]
[WhiteTeamCountry "LBN"]
[BlackTeamCountry "UGA"]
[TimeControl "40/5400+30:1800+30"]

1. e4 e5 2. Nf3 Nc6 3. Bc4 Bc5 4. c3 Nf6 5. d3 a6 6. Bb3 Ba7 7. Nbd2 h6 8. h3 d6 9. Nf1 Bd7 10. g4 Qe7 11. Be3 O-O-O 12. a4 Kb8 13. Bc2 d5 14. Qe2 d4 15. Bd2 Be6 16. Ng3 Nd7 17. b3 dxc3 18. Bxc3 g6 19. Rb1 Qd6 20. b4 Nd4 21. Nxd4 Bxd4 22. Bxd4 Qxd4 23. Qe3 Qc3+ 24. Qd2 Qxd2+ 25. Kxd2 c5 26. b5 a5 27. b6 c4 28. Rhc1 cxd3 29. Bxd3 f6 30. Rb5 Rc8 31. Rcb1 Rc6 32. Rxa5 Rxb6 33. Rab5 Rxb5 34. Rxb5 Rd8 35. Ke2 Kc7 36. Nf1 Nb8 37. Ne3 Nc6 38. Nc2 Ra8 39. f3 Rxa4 40. Ke3 b6 41. Rb2 Ra2 42. Rb1 Na5 43. Nb4 Ra3 44. Kf2 Rc3 45. Ba6 Nc4 46. Rd1 Ne3 47. Rd2 Rb3 48. Nd3 Nc4 49. Rd1 Nb2 50. Rc1+ Kd6 51. Ne1 b5 52. Bb7 Bc4 53. Kg3 Nd3 54. Nxd3 Rxd3 55. Ra1 b4 56. Ra4 Kc5 57. Ra1 b3 58. Rc1 b2 59. Rb1 Rd2 60. f4 Bd3 {0-} 0-1

[Event "45th FIDE Womens Olympiad 2024"]
[Site "Budapest"]
[Date "2024.09.14"]
[Round "4.211"]
[White "Sana Omprakash Kayyar"]
[Black "Al Asmar, Remy"]
[Result "1-0"]
[ECO "D17"]
[WhiteElo "1937"]
[BlackElo "1661"]
[PlyCount "85"]
[EventDate "2024.09.05"]
[EventType "team-tourn"]
[EventCountry "HUN"]
[WhiteTeam "Uganda"]
[BlackTeam "Lebanon"]
[WhiteTeamCountry "UGA"]
[BlackTeamCountry "LBN"]
[TimeControl "40/5400+30:1800+30"]

1. d4 d5 2. Nf3 Nf6 3. g3 Bf5 4. c4 c6 5. Bg2 e6 6. O-O dxc4 7. Ne5 Be7 8. Nxc4 O-O 9. Nc3 Nbd7 10. a4 a5 11. Re1 Nb6 12. Ne5 h6 13. e3 Bh7 14. Bd2 Nbd5 15. Nxd5 Nxd5 16. e4 Nb4 17. Bc3 Qc7 18. Rc1 Rad8 19. Qb3 Bd6 20. Red1 Bxe5 21. Bxb4 axb4 22. dxe5 Qxe5 23. Qxb4 Qb8 24. Qb6 Qa8 25. a5 Bg6 26. f3 f6 27. Bf1 e5 28. Bc4+ Kh8 29. b4 Qb8 30. b5 cxb5 31. Bxb5 Bf7 32. Bd7 Qa8 33. Bf5 Rxd1+ 34. Rxd1 Bc4 35. Rd7 Ba6 36. Qd6 Bb5 37. Rc7 Rd8 38. Qe7 Qa7+ 39. Kg2 Rd2+ 40. Kh3 Bf1+ 41. Kg4 h5+ 42. Kxh5 Rxh2+ 43. Kg6 1-0

[Event "45th FIDE Womens Olympiad 2024"]
[Site "Budapest"]
[Date "2024.09.14"]
[Round "4.212"]
[White "Darweeche, Roaa"]
[Black "Kawuma Patricia"]
[Result "1/2-1/2"]
[ECO "D02"]
[WhiteElo "1557"]
[BlackElo "1839"]
[PlyCount "93"]
[EventDate "2024.09.05"]
[EventType "team-tourn"]
[EventCountry "HUN"]
[WhiteTeam "Lebanon"]
[BlackTeam "Uganda"]
[WhiteTeamCountry "LBN"]
[BlackTeamCountry "UGA"]
[TimeControl "40/5400+30:1800+30"]

1. d4 d5 2. Nf3 Bf5 3. Bf4 Nf6 4. e3 e6 5. c4 Bb4+ 6. Nc3 O-O 7. a3 Bxc3+ 8. bxc3 Nbd7 9. h3 c6 10. cxd5 cxd5 11. Bd3 Qa5 12. Qd2 Bxd3 13. Qxd3 Ne4 14. O-O Qxc3 15. Qb5 Qc6 16. Qxc6 bxc6 17. Rab1 Nb6 18. Rfc1 Rfc8 19. Ne5 c5 20. dxc5 Nxc5 21. Rb5 Nca4 22. Rxc8+ Rxc8 23. Ra5 f6 24. Nd7 Nc3 25. Rxa7 Nxd7 26. Rxd7 Ne2+ 27. Kf1 Nxf4 28. exf4 Ra8 29. Re7 Ra6 30. Ke2 Kf8 31. Rd7 Rxa3 32. g3 h6 33. h4 f5 34. Kd2 h5 35. Ke2 g6 36. Kd2 Ra8 37. Kd3 Re8 38. Kd4 Re7 39. Rd6 Ke8 40. Ke5 Kf7 41. Rd8 Re8 42. Rd7+ Re7 43. Rd8 d4 44. Kxd4 Kf6 45. Rf8+ Kg7 46. Rd8 Kf6 47. Rf8+ 1/2-1/2

[Event "45th FIDE Womens Olympiad 2024"]
[Site "Budapest"]
[Date "2024.09.14"]
[Round "4.213"]
[White "Lieketseng, Ngatane"]
[Black "Henderson de La Fuente, Andrea"]
[Result "0-1"]
[ECO "B07"]
[WhiteElo "1651"]
[BlackElo "1986"]
[PlyCount "76"]
[EventDate "2024.09.05"]
[EventType "team-tourn"]
[EventCountry "HUN"]
[WhiteTeam "Lesotho"]
[BlackTeam "Andorra"]
[WhiteTeamCountry "LES"]
[BlackTeamCountry "AND"]
[TimeControl "40/5400+30:1800+30"]

1. e4 d6 2. d4 Nf6 3. Bd3 e5 4. dxe5 dxe5 5. Nf3 Nbd7 6. O-O Bc5 7. Bg5 O-O 8. Nc3 c6 9. Ne2 h6 10. Bh4 Qc7 11. c3 a5 12. h3 Be7 13. Qc2 Nc5 14. Bg3 Bd6 15. Nd2 Be6 16. Bc4 Bxc4 17. Nxc4 Ncxe4 18. Rad1 Nxg3 19. Nxg3 Bc5 20. Qf5 Rfe8 21. Rfe1 Re6 22. Nxe5 Ba7 23. Nd3 Rxe1+ 24. Rxe1 Qxg3 25. Re7 Rd8 26. Ne1 Re8 27. Kf1 Qd6 28. Rxe8+ Nxe8 29. Nd3 Nf6 30. Ke2 Qe6+ 31. Qxe6 fxe6 32. Kf3 Kf7 33. Kf4 c5 34. g4 g5+ 35. Kf3 Nd7 36. Ke4 c4 37. Ne1 Bxf2 38. Nc2 Bc5 {0-} 0-1

[Event "45th FIDE Womens Olympiad 2024"]
[Site "Budapest"]
[Date "2024.09.14"]
[Round "4.214"]
[White "Muratet Carmona, Julia"]
[Black "Ntsielo, Bonolo"]
[Result "1-0"]
[ECO "A16"]
[WhiteElo "1816"]
[BlackElo "1757"]
[PlyCount "135"]
[EventDate "2024.09.05"]
[EventType "team-tourn"]
[EventCountry "HUN"]
[WhiteTeam "Andorra"]
[BlackTeam "Lesotho"]
[WhiteTeamCountry "AND"]
[BlackTeamCountry "LES"]
[TimeControl "40/5400+30:1800+30"]

1. c4 Nf6 2. Nc3 d6 3. g3 g6 4. Bg2 Bg7 5. e4 O-O 6. Nge2 Re8 7. d3 Nbd7 8. O-O c6 9. h3 e5 10. Be3 Nf8 11. Qd2 Be6 12. f4 Qd7 13. Kh2 Rad8 14. Bxa7 c5 15. Bb6 Rc8 16. Nd5 Bxd5 17. cxd5 exf4 18. Nxf4 Qa4 19. Ba5 N6d7 20. Bc3 Ne5 21. b3 Qb5 22. d4 Ned7 23. dxc5 Bxc3 24. Qxc3 Rxc5 25. Qe3 Ne5 26. Rac1 Nfd7 27. Ne2 Qa6 28. a4 Rxd5 29. Rcd1 Rxd1 30. Rxd1 Nc5 31. Nd4 Qb6 32. Nb5 Re6 33. Ra1 Nxa4 34. Qxb6 Nxb6 35. Ra7 Nbd7 36. Rxb7 Nc5 37. Rb8+ Kg7 38. Nc7 Re7 39. Ne8+ Kh6 40. Nxd6 Rd7 41. Nc4 Nxc4 42. bxc4 Rd4 43. Rb4 Nxe4 44. Bxe4 Rxe4 45. Kg2 f5 46. Kf3 Rd4 47. Ke3 Re4+ 48. Kd3 Kg5 49. Rb1 h5 50. c5 Re7 51. Rc1 h4 52. gxh4+ Kxh4 53. c6 Rc7 54. Ke3 g5 55. Kf3 Kh5 56. Rc4 Kg6 57. Ke3 Kf6 58. Kd4 g4 59. h4 g3 60. Ke3 g2 61. Kf2 Ke6 62. Kxg2 Kd5 63. Rc1 Rxc6 64. Rxc6 Kxc6 65. h5 Kd6 66. h6 Ke7 67. h7 Kf7 68. h8=Q 1-0

[Event "45th FIDE Womens Olympiad 2024"]
[Site "Budapest"]
[Date "2024.09.14"]
[Round "4.215"]
[White "lintle molise"]
[Black "Muratet Carmona, Alexandra"]
[Result "1/2-1/2"]
[ECO "B13"]
[WhiteElo "1583"]
[BlackElo "1796"]
[PlyCount "106"]
[EventDate "2024.09.05"]
[EventType "team-tourn"]
[EventCountry "HUN"]
[WhiteTeam "Lesotho"]
[BlackTeam "Andorra"]
[WhiteTeamCountry "LES"]
[BlackTeamCountry "AND"]
[TimeControl "40/5400+30:1800+30"]

1. Nf3 c5 2. e3 d5 3. d4 cxd4 4. exd4 Nc6 5. Bd3 Nf6 6. O-O Bg4 7. Be2 e6 8. b3 Qc7 9. Bb2 Rc8 10. Nbd2 Be7 11. a3 O-O 12. Rc1 Qb8 13. Ne5 Bf5 14. f4 Nxe5 15. fxe5 Ne4 16. Nxe4 Bxe4 17. Bd3 Bg5 18. Rb1 Qc7 19. Bxe4 dxe4 20. c4 Rcd8 21. Qe2 Qc6 22. Rbe1 e3 23. g3 Qe4 24. b4 f5 25. exf6 Bxf6 26. Qxe3 Qxe3+ 27. Rxe3 Bxd4 28. Rxf8+ Kxf8 29. Bxd4 Rxd4 30. Rxe6 Rxc4 31. Re3 Kf7 32. Kg2 Kf6 33. h3 g5 34. g4 a6 35. Kg3 h6 36. Kg2 b6 37. Kg3 Rd4 38. h4 Rd5 39. h5 Re5 40. Rf3+ Ke7 41. Rc3 Kd7 42. Kf3 Re6 43. Kg3 Kd6 44. Kf3 Kd5 45. Rc1 Kd4 46. a4 Kd5 47. Rc8 Kd4 48. b5 Rf6+ 49. Kg3 axb5 50. axb5 Kd5 51. Rc1 Re6 52. Kf3 Rf6+ 53. Kg3 Re6 1/2-1/2

[Event "45th FIDE Womens Olympiad 2024"]
[Site "Budapest"]
[Date "2024.09.14"]
[Round "4.216"]
[White "Real Puigdollers, Silvia"]
[Black "Thetsane, Nteboheleng"]
[Result "1-0"]
[ECO "A07"]
[WhiteElo "1781"]
[BlackElo "1645"]
[PlyCount "97"]
[EventDate "2024.09.05"]
[EventType "team-tourn"]
[EventCountry "HUN"]
[WhiteTeam "Andorra"]
[BlackTeam "Lesotho"]
[WhiteTeamCountry "AND"]
[BlackTeamCountry "LES"]
[TimeControl "40/5400+30:1800+30"]

1. Nf3 d5 2. g3 Nf6 3. Bg2 Bg4 4. O-O Nbd7 5. d3 h6 6. Nbd2 Bxf3 7. Nxf3 e6 8. c3 Be7 9. Qc2 O-O 10. e4 dxe4 11. dxe4 c6 12. h3 Qc7 13. Be3 Nc5 14. Ne1 Rfd8 15. b4 Ncd7 16. Qe2 Qe5 17. Bd4 Qc7 18. a3 Ne5 19. f4 Ng6 20. Nd3 b6 21. Rad1 Rac8 22. e5 Nd5 23. c4 Nxb4 24. Nxb4 Rxd4 25. Rxd4 Bc5 26. Kh2 Bxd4 27. Nxc6 Bc5 28. Qf3 Ne7 29. Nxe7+ Qxe7 30. Ra1 Bd4 31. Rd1 Bc5 32. a4 Bb4 33. Qd3 a5 34. h4 Qe8 35. Qe4 Qxa4 36. Rf1 Qd7 37. f5 exf5 38. Rxf5 Rxc4 39. Qa8+ Rc8 40. Qe4 Bc3 41. Rf3 Qe7 42. Bh3 Rc5 43. e6 f6 44. Qa8+ Qf8 45. Qb7 Bb4 46. Bf5 Re5 47. Qxb6 Qa8 48. Rd3 Be7 49. Bg6 1-0

[Event "45th FIDE Womens Olympiad 2024"]
[Site "Budapest"]
[Date "2024.09.14"]
[Round "4.217"]
[White "Marape, Naledi"]
[Black "Benson, Maud"]
[Result "1-0"]
[ECO "B07"]
[WhiteElo "1926"]
[BlackElo "1682"]
[PlyCount "37"]
[EventDate "2024.09.05"]
[EventType "team-tourn"]
[EventCountry "HUN"]
[WhiteTeam "Botswana"]
[BlackTeam "Ghana"]
[WhiteTeamCountry "BOT"]
[BlackTeamCountry "GHA"]
[TimeControl "40/5400+30:1800+30"]

1. e4 d6 2. d4 Nf6 3. Nc3 g6 4. Be3 Bg7 5. f3 c6 6. Qd2 b5 7. Bh6 Bxh6 8. Qxh6 Nbd7 9. O-O-O b4 10. Nce2 a5 11. e5 Nd5 12. exd6 e6 13. Ng3 N7b6 14. Ne4 Ba6 15. Bxa6 Rxa6 16. Nh3 Nf6 17. Qg7 Kd7 18. Nc5+ Kxd6 19. Nb7+ 1-0

[Event "45th FIDE Womens Olympiad 2024"]
[Site "Budapest"]
[Date "2024.09.14"]
[Round "4.218"]
[White "Felix, Tobi"]
[Black "Gabatshwarwe Refilwe"]
[Result "1/2-1/2"]
[ECO "D00"]
[WhiteElo "1677"]
[BlackElo "1787"]
[PlyCount "71"]
[EventDate "2024.09.05"]
[EventType "team-tourn"]
[EventCountry "HUN"]
[WhiteTeam "Ghana"]
[BlackTeam "Botswana"]
[WhiteTeamCountry "GHA"]
[BlackTeamCountry "BOT"]
[TimeControl "40/5400+30:1800+30"]

1. d4 d5 2. Bf4 c5 3. c3 Nc6 4. e3 Qb6 5. Qb3 c4 6. Qc2 e5 7. dxe5 Bf5 8. Qc1 g5 9. Bg3 h5 10. h3 Bg7 11. Nf3 g4 12. Nd4 Bxb1 13. Nxc6 Bg6 14. Nd4 Ne7 15. hxg4 hxg4 16. Rxh8+ Bxh8 17. Be2 Nf5 18. Nxf5 Bxf5 19. Qd2 O-O-O 20. O-O-O f6 21. Bh4 Rd7 22. exf6 Bxf6 23. Bxf6 Qxf6 24. Qd4 Qe6 25. Rh1 b6 26. Qf4 Kb7 27. Rh6 Qf7 28. Bxg4 Bxg4 29. Qxg4 Ka6 30. Qg3 Qf5 31. Rh4 Qd3 32. Rd4 Qh7 33. Qf3 Qg8 34. e4 Rf7 35. Qe3 Qxg2 36. exd5 1/2-1/2

[Event "45th FIDE Womens Olympiad 2024"]
[Site "Budapest"]
[Date "2024.09.14"]
[Round "4.219"]
[White "Banda Natalie Katlo"]
[Black "Dotse Dzidzor Esi"]
[Result "1/2-1/2"]
[ECO "D04"]
[WhiteElo "1893"]
[BlackElo "1530"]
[PlyCount "60"]
[EventDate "2024.09.05"]
[EventType "team-tourn"]
[EventCountry "HUN"]
[WhiteTeam "Botswana"]
[BlackTeam "Ghana"]
[WhiteTeamCountry "BOT"]
[BlackTeamCountry "GHA"]
[TimeControl "40/5400+30:1800+30"]

1. d4 d5 2. Nf3 Nf6 3. e3 Bg4 4. h3 Bxf3 5. Qxf3 e6 6. c3 Be7 7. Nd2 O-O 8. Bd3 c5 9. g4 Nfd7 10. c4 Nc6 11. cxd5 Nb4 12. Bb1 Nxd5 13. e4 Nb4 14. e5 cxd4 15. Qe4 g6 16. Nb3 Nc6 17. f4 Qb6 18. h4 f5 19. exf6 Nxf6 20. Qxe6+ Rf7 21. g5 Bb4+ 22. Kd1 Re8 23. Qh3 Nh5 24. f5 Rfe7 25. Qf3 Re1+ 26. Rxe1 Rxe1+ 27. Kc2 d3+ 28. Qxd3 Qf2+ 29. Bd2 Bxd2 30. Qc4+ Kf8 1/2-1/2

[Event "45th FIDE Womens Olympiad 2024"]
[Site "Budapest"]
[Date "2024.09.14"]
[Round "4.220"]
[White "Hephzibah Awura-Ama Manubea Ta"]
[Black "Rebatenne, Boitshepo"]
[Result "0-1"]
[ECO "D04"]
[WhiteElo "1516"]
[BlackElo "1696"]
[PlyCount "54"]
[EventDate "2024.09.05"]
[EventType "team-tourn"]
[EventCountry "HUN"]
[WhiteTeam "Ghana"]
[BlackTeam "Botswana"]
[WhiteTeamCountry "GHA"]
[BlackTeamCountry "BOT"]
[TimeControl "40/5400+30:1800+30"]

1. d4 d5 2. e3 Nf6 3. Nf3 c6 4. Be2 Bf5 5. O-O Nbd7 6. b3 e6 7. Bb2 Bd6 8. Nbd2 Qc7 9. g3 Ne4 10. Nxe4 dxe4 11. Nd2 Nf6 12. c4 c5 13. d5 Be5 14. Bxe5 Qxe5 15. dxe6 Qxe6 16. Qc2 h5 17. Rfd1 h4 18. Bf1 hxg3 19. fxg3 Ng4 20. Qc3 Nxh2 21. Qxg7 O-O-O 22. Qc3 Rdg8 23. Bg2 Rh5 24. Qa5 Qe5 25. Qxa7 Qxg3 26. Qa8+ Kc7 27. Qa5+ Kb8 {0-} 0-1

[Event "45th FIDE Womens Olympiad 2024"]
[Site "Budapest"]
[Date "2024.09.14"]
[Round "4.221"]
[White "Ollet, Myra"]
[Black "Johnson, Gabriella"]
[Result "1-0"]
[ECO "D02"]
[WhiteElo "1658"]
[BlackElo "1896"]
[PlyCount "125"]
[EventDate "2024.09.05"]
[EventType "team-tourn"]
[EventCountry "HUN"]
[WhiteTeam "Guam"]
[BlackTeam "Trinidad & Tobago"]
[WhiteTeamCountry "GMA"]
[TimeControl "40/5400+30:1800+30"]

1. d4 d5 2. Nf3 Nf6 3. Bf4 c5 4. c3 Nc6 5. e3 Qb6 6. Qb3 c4 7. Qc2 Bf5 8. Qc1 e6 9. Be2 h6 10. h3 Be7 11. Nbd2 Qa6 12. a4 Qb6 13. O-O O-O 14. Re1 Na5 15. Bd1 Bd6 16. Ne5 Qc7 17. f3 Nd7 18. Nxd7 Qxd7 19. Bxd6 Qxd6 20. e4 Bg6 21. Nf1 Rab8 22. e5 Qc7 23. Bc2 b5 24. Ne3 Bxc2 25. Qxc2 b4 26. f4 bxc3 27. bxc3 Rb3 28. f5 Rfb8 29. Nd1 Nc6 30. Rf1 exf5 31. Qxf5 Qe7 32. Rc1 Ra3 33. Nf2 Qe6 34. Qh5 Rbb3 35. Ng4 Qg6 36. Qxg6 fxg6 37. e6 Rb7 38. Ne3 Re7 39. Nxd5 Rxe6 40. Rb1 Rd6 41. Nc7 Rxa4 42. Rbe1 Ra5 43. Re8+ Kh7 44. h4 Rf5 45. Rfe1 Rdf6 46. Rc8 g5 47. Ne8 gxh4 48. Nxf6+ Rxf6 49. Rc7 a6 50. d5 Na5 51. Re6 Rxe6 52. dxe6 Kg6 53. e7 Kf7 54. Rc5 Nb3 55. Rxc4 Kxe7 56. Rxh4 a5 57. Ra4 Ke6 58. Ra3 Nc1 59. c4 Ne2+ 60. Kf2 Nd4 61. Rxa5 Kd6 62. Rd5+ Kc6 63. Rxd4 1-0

[Event "45th FIDE Womens Olympiad 2024"]
[Site "Budapest"]
[Date "2024.09.14"]
[Round "4.222"]
[White "Hermoso Rodriguez, Ysvett"]
[Black "Ramas, Carmina Jasmine"]
[Result "1-0"]
[ECO "B07"]
[WhiteElo "1943"]
[BlackElo "1712"]
[PlyCount "123"]
[EventDate "2024.09.05"]
[EventType "team-tourn"]
[EventCountry "HUN"]
[WhiteTeam "Trinidad & Tobago"]
[BlackTeam "Guam"]
[BlackTeamCountry "GMA"]
[TimeControl "40/5400+30:1800+30"]

1. e4 d6 2. d4 Nf6 3. Nc3 c6 4. f3 Qc7 5. Be3 e5 6. Nge2 Nbd7 7. Qd2 b6 8. g4 Bb7 9. O-O-O exd4 10. Nxd4 O-O-O 11. Be2 g6 12. h4 h5 13. Ndb5 Qb8 14. Nxd6+ Bxd6 15. Qxd6 Qxd6 16. Rxd6 Ne8 17. Rd2 hxg4 18. fxg4 f6 19. h5 Ne5 20. Rhd1 Rxd2 21. Rxd2 g5 22. Bd4 Kc7 23. Rd1 Bc8 24. Bxe5+ fxe5 25. Rf1 Be6 26. b3 Rh6 27. Kd2 Nf6 28. Rg1 Kd6 29. Ke3 b5 30. a3 Kc5 31. Nb1 Nd7 32. Nd2 a5 33. Nf3 Rf6 34. Nxg5 Bg8 35. Nh3 Nf8 36. Rf1 Rxf1 37. Bxf1 Kd6 38. g5 Ke7 39. Be2 Kf7 40. Bg4 Kg7 41. Kf3 Be6 42. Bf5 c5 43. Nf2 c4 44. bxc4 Bxc4 45. c3 Ne6 46. Bxe6 Bxe6 47. Ng4 Bb3 48. Nf6 Bd1+ 49. Kg3 Be2 50. Kh4 Bf3 51. Ng4 Bxe4 52. Nxe5 Bc2 53. Kg3 a4 54. Kf4 Bd1 55. h6+ Kh7 56. Kf5 Bc2+ 57. Kf6 Bd1 58. Ng6 Bc2 59. Nf8+ Kg8 60. h7+ Bxh7 61. Nxh7 Kxh7 62. Kf7 1-0

[Event "45th FIDE Womens Olympiad 2024"]
[Site "Budapest"]
[Date "2024.09.14"]
[Round "4.223"]
[White "Benzon, Tiffany"]
[Black "La Fleur, Zara"]
[Result "0-1"]
[ECO "C50"]
[WhiteElo "1610"]
[BlackElo "1773"]
[PlyCount "122"]
[EventDate "2024.09.05"]
[EventType "team-tourn"]
[EventCountry "HUN"]
[WhiteTeam "Guam"]
[BlackTeam "Trinidad & Tobago"]
[WhiteTeamCountry "GMA"]
[TimeControl "40/5400+30:1800+30"]

1. e4 e5 2. Nf3 Nc6 3. Bc4 Bc5 4. Nc3 Nf6 5. d3 h6 6. O-O d6 7. Be3 Bxe3 8. fxe3 O-O 9. h3 Na5 10. Bb3 Nxb3 11. axb3 c6 12. d4 Qe7 13. d5 Nh7 14. Qe1 f5 15. exf5 Rxf5 16. e4 Rf4 17. Qg3 Bd7 18. Nh2 Rxf1+ 19. Rxf1 Nf6 20. Qg6 Rf8 21. b4 Be8 22. Qf5 Nh7 23. Qg4 Bf7 24. Rf3 Nf6 25. Qh4 Nxd5 26. Qxe7 Nxe7 27. Ng4 Be6 28. Rxf8+ Kxf8 29. Ne3 a6 30. Kf2 Kf7 31. Kf3 b5 32. Ng4 Bxg4+ 33. Kxg4 g6 34. h4 Ke6 35. Kf3 d5 36. Nb1 dxe4+ 37. Kxe4 Nf5 38. Nd2 Nxh4 39. g3 Nf5 40. g4 Nd6+ 41. Kf3 Kd5 42. b3 c5 43. bxc5 Kxc5 44. Ke3 a5 45. Kd3 e4+ 46. Nxe4+ Nxe4 47. Kxe4 a4 48. bxa4 bxa4 49. g5 hxg5 50. Kf3 a3 51. c4 a2 52. Kg4 a1=Q 53. Kg3 Qe5+ 54. Kh3 Qe3+ 55. Kg4 Qf4+ 56. Kh3 Qf3+ 57. Kh2 g4 58. Kg1 Qe2 59. Kh1 g3 60. Kg1 Qf2+ 61. Kh1 Qh2# {0-} 0-1

[Event "45th FIDE Womens Olympiad 2024"]
[Site "Budapest"]
[Date "2024.09.14"]
[Round "4.224"]
[White "Ramnarine Singh, Aradhana"]
[Black "Nacario, Ruth"]
[Result "0-1"]
[ECO "B22"]
[WhiteElo "1589"]
[BlackElo "1607"]
[PlyCount "78"]
[EventDate "2024.09.05"]
[EventType "team-tourn"]
[EventCountry "HUN"]
[WhiteTeam "Trinidad & Tobago"]
[BlackTeam "Guam"]
[BlackTeamCountry "GMA"]
[TimeControl "40/5400+30:1800+30"]

1. e4 e6 2. d4 d5 3. exd5 exd5 4. Bd3 Nf6 5. Nf3 c5 6. c3 Nc6 7. O-O cxd4 8. Nxd4 Be7 9. Bc2 Bd7 10. Bf4 O-O 11. Re1 Re8 12. Qd3 Bf8 13. Nd2 g6 14. N2f3 Bg7 15. h3 Qb6 16. Nb3 a5 17. Be3 Qc7 18. Nbd4 Nxd4 19. Bxd4 Bf5 20. Rxe8+ Rxe8 21. Qd1 Be4 22. Ba4 Re6 23. Nd2 Bd3 24. Nf1 Be2 25. Qd2 Bc4 26. Ne3 Bh6 27. Re1 Ne4 28. Qd1 Qf4 29. Ng4 Bg5 30. Be3 Qf5 31. Bd7 h5 32. Bxe6 fxe6 33. Nh2 Bxe3 34. Rxe3 Qxf2+ 35. Kh1 Qxe3 36. Nf1 Bxf1 37. Qa4 Bxg2+ 38. Kxg2 Qg3+ 39. Kf1 Qf2# {0-} 0-1